Workbook

Sheet Dashboard
Q3: 2017
Q4: NOVIEMBRE | JU4: Empresa - Sector | JV4: Empresa - Sector
E5: Acumulado a: | F5: =Q4 -> NOVIEMBRE | I5: Datos acumulados | K5: Cuota Negocio / Total ASEMPLEO | N5: =empresa_ccaa!L5 -> iEMPRESA | P5: ¿▲"sin" mi Empresa? | JV5: p.p.
E6: Total | F6: Facturación, € | H6: (a) | I6: =N5 -> iEMPRESA | M6: Cuota de Facturación | N6: ∆ | P6: (b) | Q6: ∆ (a-b) | JV6: Puntos porcentuales
F7: 2016 | G7: 2017 | H7: % i.a. | I7: 2016 | J7: 2017 | K7: % i.a. | L7: 2016 | M7: 2017 | N7: Dif.P.P. | P7: % i.a. | Q7: Dif.P.P. | JU7: Dif. Ritmo | JV7: Importancia Relativa | JY7: Empresa
E8: Nacional | F8: =empresa_ccaa!F12 -> 2798179299 | G8: =empresa_ccaa!G12 -> 3245395041 | H8: =((G8/F8)-1) -> 0.1598238333 | I8: =empresa_ccaa!K12 -> 0 | J8: =empresa_ccaa!L12 -> 0 | K8: =IF(I8>0,((J8/I8)-1),"n.a.") -> n.a. | L8: =I8/F8 -> 0 | M8: =J8/G8 -> 0 | N8: =(M8-L8)*100 -> 0 | P8: =((G8-J8)/(F8-I8))-1 -> 0.1598238333 | Q8: =(H8-P8)*100 -> 0 | JU8: =IF(K8="n.a.","n.a.",(K8-H8)*100) -> n.a. | JV8: =empresa_ccaa!M12-empresa_ccaa!H12 ->  | JX8: criterio_rank | JY8: peso | JZ8: Comunidad | KA8: % i.a. | KB8: Total_Regional
E9: ANDALUCIA | F9: =empresa_ccaa!F13 -> 267281770.2 | G9: =empresa_ccaa!G13 -> 292565289.8 | H9: =((G9/F9)-1) -> 0.0945950019 | I9: =empresa_ccaa!K13 -> 0 | J9: =empresa_ccaa!L13 -> 0 | K9: n.a. | L9: 0 | M9: 0 | N9: =(M9-L9)*100 -> 0 | P9: =((G9-J9)/(F9-I9))-1 -> 0.0945950019 | Q9: 0 | JU9: n.a. | JV9: =empresa_ccaa!M13-empresa_ccaa!H13 ->  | JX9: =IF(JY9=$JY$27,1,0) -> 1 | JY9: =M9 -> 0 | JZ9: =E9 -> ANDALUCIA | KA9: =K9 -> n.a. | KB9: =H9 -> 0.0945950019
E10: ARAGON | F10: =empresa_ccaa!F14 -> 147329392.1 | G10: =empresa_ccaa!G14 -> 190133495.9 | H10: =((G10/F10)-1) -> 0.2905333638 | I10: =empresa_ccaa!K14 -> 0 | J10: =empresa_ccaa!L14 -> 0 | K10: n.a. | L10: 0 | M10: 0 | N10: 0 | P10: 0.2905333638 | Q10: 0 | JU10: n.a. | JV10: =empresa_ccaa!M14-empresa_ccaa!H14 ->  | JX10: 1 | JY10: 0 | JZ10: ARAGON | KA10: n.a. | KB10: 0.2905333638
E11: ASTURIAS | F11: =empresa_ccaa!F15 -> 49068100.89 | G11: =empresa_ccaa!G15 -> 65327796.76 | H11: 0.3313699852 | I11: =empresa_ccaa!K15 -> 0 | J11: =empresa_ccaa!L15 -> 0 | K11: n.a. | L11: 0 | M11: 0 | N11: 0 | P11: 0.3313699852 | Q11: 0 | JU11: n.a. | JV11: =empresa_ccaa!M15-empresa_ccaa!H15 ->  | JX11: 1 | JY11: 0 | JZ11: ASTURIAS | KA11: n.a. | KB11: 0.3313699852
E12: BALEARES | F12: =empresa_ccaa!F16 -> 13145119.56 | G12: =empresa_ccaa!G16 -> 16773167.96 | H12: 0.2759996499 | I12: =empresa_ccaa!K16 -> 0 | J12: =empresa_ccaa!L16 -> 0 | K12: n.a. | L12: 0 | M12: 0 | N12: 0 | P12: 0.2759996499 | Q12: 0 | JU12: n.a. | JV12: =empresa_ccaa!M16-empresa_ccaa!H16 ->  | JX12: 1 | JY12: 0 | JZ12: BALEARES | KA12: n.a. | KB12: 0.2759996499
E13: CANARIAS | F13: =empresa_ccaa!F17 -> 55264380.62 | G13: =empresa_ccaa!G17 -> 67626188.72 | H13: 0.2236849118 | I13: =empresa_ccaa!K17 -> 0 | J13: =empresa_ccaa!L17 -> 0 | K13: n.a. | L13: 0 | M13: 0 | N13: 0 | P13: 0.2236849118 | Q13: 0 | JU13: n.a. | JV13: =empresa_ccaa!M17-empresa_ccaa!H17 ->  | JX13: 1 | JY13: 0 | JZ13: CANARIAS | KA13: n.a. | KB13: 0.2236849118
E14: CANTABRIA | F14: =empresa_ccaa!F18 -> 59612773.52 | G14: =empresa_ccaa!G18 -> 77397307.49 | H14: 0.2983342817 | I14: =empresa_ccaa!K18 -> 0 | J14: =empresa_ccaa!L18 -> 0 | K14: n.a. | L14: 0 | M14: 0 | N14: 0 | P14: 0.2983342817 | Q14: 0 | JU14: n.a. | JV14: =empresa_ccaa!M18-empresa_ccaa!H18 ->  | JX14: 1 | JY14: 0 | JZ14: CANTABRIA | KA14: n.a. | KB14: 0.2983342817
E15: CASTILLA-LA MANCHA | F15: =empresa_ccaa!F19 -> 124025735 | G15: =empresa_ccaa!G19 -> 140550814.1 | H15: 0.133239114 | I15: =empresa_ccaa!K19 -> 0 | J15: =empresa_ccaa!L19 -> 0 | K15: n.a. | L15: 0 | M15: 0 | N15: 0 | P15: 0.133239114 | Q15: 0 | JU15: n.a. | JV15: =empresa_ccaa!M19-empresa_ccaa!H19 ->  | JX15: 1 | JY15: 0 | JZ15: CASTILLA-LA MANCHA | KA15: n.a. | KB15: 0.133239114
E16: CASTILLA Y LEÓN | F16: =empresa_ccaa!F20 -> 200000490.3 | G16: =empresa_ccaa!G20 -> 223515208.8 | H16: 0.1175733044 | I16: =empresa_ccaa!K20 -> 0 | J16: =empresa_ccaa!L20 -> 0 | K16: n.a. | L16: 0 | M16: 0 | N16: =(M16-L16)*100 -> 0 | P16: 0.1175733044 | Q16: 0 | JU16: n.a. | JV16: =empresa_ccaa!M20-empresa_ccaa!H20 ->  | JX16: 1 | JY16: 0 | JZ16: CASTILLA Y LEÓN | KA16: n.a. | KB16: 0.1175733044
E17: CATALUÑA | F17: =empresa_ccaa!F21 -> 679132715.7 | G17: =empresa_ccaa!G21 -> 796701398.3 | H17: 0.1731159167 | I17: =empresa_ccaa!K21 -> 0 | J17: =empresa_ccaa!L21 -> 0 | K17: n.a. | L17: 0 | M17: 0 | N17: =(M17-L17)*100 -> 0 | P17: 0.1731159167 | Q17: 0 | JU17: n.a. | JV17: =empresa_ccaa!M21-empresa_ccaa!H21 ->  | JX17: 1 | JY17: 0 | JZ17: CATALUÑA | KA17: n.a. | KB17: 0.1731159167
E18: COMUNIDAD VALENCIANA | F18: =empresa_ccaa!F22 -> 210142356.3 | G18: =empresa_ccaa!G22 -> 243319149.4 | H18: 0.1578777056 | I18: =empresa_ccaa!K22 -> 0 | J18: =empresa_ccaa!L22 -> 0 | K18: n.a. | L18: 0 | M18: 0 | N18: =(M18-L18)*100 -> 0 | P18: 0.1578777056 | Q18: 0 | JU18: n.a. | JV18: =empresa_ccaa!M22-empresa_ccaa!H22 ->  | JX18: 1 | JY18: 0 | JZ18: COMUNIDAD VALENCIANA | KA18: n.a. | KB18: 0.1578777056
E19: EXTREMADURA | F19: =empresa_ccaa!F23 -> 16388739.1 | G19: =empresa_ccaa!G23 -> 20544655 | H19: 0.2535836268 | I19: =empresa_ccaa!K23 -> 0 | J19: =empresa_ccaa!L23 -> 0 | K19: n.a. | L19: 0 | M19: 0 | N19: 0 | P19: 0.2535836268 | Q19: 0 | JU19: n.a. | JV19: =empresa_ccaa!M23-empresa_ccaa!H23 ->  | JX19: 1 | JY19: 0 | JZ19: EXTREMADURA | KA19: n.a. | KB19: 0.2535836268
E20: GALICIA | F20: =empresa_ccaa!F24 -> 150482001.2 | G20: =empresa_ccaa!G24 -> 171562939.4 | H20: 0.1400894326 | I20: =empresa_ccaa!K24 -> 0 | J20: =empresa_ccaa!L24 -> 0 | K20: n.a. | L20: 0 | M20: 0 | N20: 0 | P20: 0.1400894326 | Q20: 0 | JU20: n.a. | JV20: =empresa_ccaa!M24-empresa_ccaa!H24 ->  | JX20: 1 | JY20: 0 | JZ20: GALICIA | KA20: n.a. | KB20: 0.1400894326
E21: MADRID | F21: =empresa_ccaa!F25 -> 468983654.4 | G21: =empresa_ccaa!G25 -> 511087961.7 | H21: 0.08977777131 | I21: =empresa_ccaa!K25 -> 0 | J21: =empresa_ccaa!L25 -> 0 | K21: n.a. | L21: 0 | M21: 0 | N21: 0 | P21: 0.08977777131 | Q21: 0 | JU21: n.a. | JV21: =empresa_ccaa!M25-empresa_ccaa!H25 ->  | JX21: 1 | JY21: 0 | JZ21: MADRID | KA21: n.a. | KB21: 0.08977777131
E22: MURCIA | F22: =empresa_ccaa!F26 -> 91853347.75 | G22: =empresa_ccaa!G26 -> 119001084.8 | H22: 0.2955552272 | I22: =empresa_ccaa!K26 -> 0 | J22: =empresa_ccaa!L26 -> 0 | K22: n.a. | L22: 0 | M22: 0 | N22: 0 | P22: 0.2955552272 | Q22: 0 | JU22: n.a. | JV22: =empresa_ccaa!M26-empresa_ccaa!H26 ->  | JX22: 1 | JY22: 0 | JZ22: MURCIA | KA22: n.a. | KB22: 0.2955552272
E23: NAVARRA | F23: =empresa_ccaa!F27 -> 89891012.52 | G23: =empresa_ccaa!G27 -> 109566471.9 | H23: 0.2188812739 | I23: =empresa_ccaa!K27 -> 0 | J23: =empresa_ccaa!L27 -> 0 | K23: n.a. | L23: 0 | M23: 0 | N23: 0 | P23: 0.2188812739 | Q23: 0 | JU23: n.a. | JV23: =empresa_ccaa!M27-empresa_ccaa!H27 ->  | JX23: 1 | JY23: 0 | JZ23: NAVARRA | KA23: n.a. | KB23: 0.2188812739
E24: PAIS VASCO | F24: =empresa_ccaa!F28 -> 149792164 | G24: =empresa_ccaa!G28 -> 170907744.4 | H24: 0.1409658544 | I24: =empresa_ccaa!K28 -> 0 | J24: =empresa_ccaa!L28 -> 0 | K24: n.a. | L24: 0 | M24: 0 | N24: 0 | P24: 0.1409658544 | Q24: 0 | JU24: n.a. | JV24: =empresa_ccaa!M28-empresa_ccaa!H28 ->  | JX24: 1 | JY24: 0 | JZ24: PAIS VASCO | KA24: n.a. | KB24: 0.1409658544
E25: RIOJA (LA) | F25: =empresa_ccaa!F29 -> 25785545.95 | G25: =empresa_ccaa!G29 -> 28814366.61 | H25: 0.1174619561 | I25: =empresa_ccaa!K29 -> 0 | J25: =empresa_ccaa!L29 -> 0 | K25: n.a. | L25: 0 | M25: 0 | N25: 0 | P25: 0.1174619561 | Q25: 0 | JU25: n.a. | JV25: =empresa_ccaa!M29-empresa_ccaa!H29 ->  | JX25: 1 | JY25: 0 | JZ25: RIOJA (LA) | KA25: n.a. | KB25: 0.1174619561
JX26: codifico=1 | JY26: máximo
JX27: =DMAX(JX8:JZ25,JY8,JX8:JX25)*1 -> 0 | JY27: =MAX(JY9:JY25) -> 0
N28: =M6 -> Cuota de Facturación | JW28: geo data | JX28: =VLOOKUP(1,JX8:KB25,3,0) -> ANDALUCIA
Q29: =M7 -> 2017 | JX29: el dato a buscar debe estar en la primera columna.
F30: % i.a. | J30: % i.a. | JX30: =VLOOKUP(1,JX8:KB25,4,0)*1 -> 
F31: 2017 | J31: 2017 | JX31: =VLOOKUP(1,JX8:KB25,5,0)*1 -> 0.0945950019
F32: Total | J32: Empresa | N32: =N5 -> iEMPRESA
Q33: Ámbito
E34: Ámbito | F34: =J34 -> Nacional | J34: =N34 -> Nacional | N34: Nacional | Q34: Nacional
N38: =JX28 -> ANDALUCIA | Q38: CCAA
Q39: Líder para la
F40: % i.a. | J40: % i.a. | Q40: Empresa
F41: 2017 | J41: 2017
F42: Total | J42: Empresa | N42: =N32 -> iEMPRESA
E44: Ámbito | F44: =J44 -> ANDALUCIA | J44: =N44 -> ANDALUCIA | N44: =N38 -> ANDALUCIA
E48: Fuente: Cifras consolidadas del sector. Valores absolutos 2015-2017 y cifras de evolución de 2016 a la fecha. ASEMPLEO ©.
E49: Nota de Confidencialidad: Este informe comparativo contiene datos redondeados que son ficticeos y serán reemplazados por los que la Empresa introduzca en "empresa_ccaa".

Sheet Ayuda y Version (hidden)
G2: Versión de plantilla: | H2: 2.5

Sheet pBlock (hidden)
B4: Block Test
B5: Info1 | C5: Info2

Sheet pAccel0 (hidden)
A1: Gauge Configuration | O1: Gauge Configuration | Z1: Gauge Configuration | AK1: Gauge Configuration
F2: Decal | T2: Decal | AE2: Decal | AP2: Decal
A3: Title: | B3: =Dashboard!#REF! ->  | F3: 0 | O3: Title: | P3: =pAccel0!B3 ->  | T3: 0 | Z3: Title: | AA3: Empresa | AE3: 0 | AK3: Title: | AL3: CCAA | AP3: 0
A4: Real Value: | B4: =Dashboard!#REF! ->  | O4: Real Value: | P4: =Dashboard!M8 -> 0 | Z4: Real Value: | AA4: =Dashboard!M8 -> 0 | AK4: Real Value: | AL4: =Dashboard!JX27 -> 0
A6: Color bands | O6: Color bands | Z6: Color bands | AK6: Color bands
A7: Red: | B7: 2 | O7: Red: | P7: 2 | Z7: Red: | AA7: 2 | AK7: Red: | AL7: 2
A8: Yellow: | B8: 15 | O8: Yellow: | P8: 15 | Z8: Yellow: | AA8: 15 | AK8: Yellow: | AL8: 15
A9: Green: | B9: 23 | O9: Green: | P9: 23 | Z9: Green: | AA9: 23 | AK9: Green: | AL9: 23
A11: Advanced Parameters | O11: Advanced Parameters | Z11: Advanced Parameters | AK11: Advanced Parameters
B12: Value to 100% | C12: =IF(ISERROR((B4-F3/100)*B27),0,(B4-F3/100)*B27) -> 0 | P12: Value to 100% | Q12: =IF(ISERROR((P4-T3/100)*P27),0,(P4-T3/100)*P27) -> 0 | AA12: Value to 100% | AB12: =IF(ISERROR((AA4-AE3/100)*AA27),0,(AA4-AE3/100)*AA27) -> 0 | AL12: Value to 100% | AM12: =IF(ISERROR((AL4-AP3/100)*AL27),0,(AL4-AP3/100)*AL27) -> 0
B13: Relative value | C13: =IF(C12>100%,102%,IF(C12<0%,-2%,C12))*1.506-0.253 -> -0.253 | P13: Relative value | Q13: =IF(Q12>100%,102%,IF(Q12<0%,-2%,Q12))*1.506-0.253 -> -0.253 | AA13: Relative value | AB13: =IF(AB12>100%,102%,IF(AB12<0%,-2%,AB12))*1.506-0.253 -> -0.253 | AL13: Relative value | AM13: =IF(AM12>100%,102%,IF(AM12<0%,-2%,AM12))*1.506-0.253 -> -0.253
A15: Angle | C15: =C13*PI() -> -0.7948229414 | O15: Angle | Q15: =Q13*PI() -> -0.7948229414 | Z15: Angle | AB15: =AB13*PI() -> -0.7948229414 | AK15: Angle | AM15: =AM13*PI() -> -0.7948229414
A16: x | B16: 0 | C16: =-COS(C15) -> -0.7004111508 | O16: x | P16: 0 | Q16: =-COS(Q15) -> -0.7004111508 | Z16: x | AA16: 0 | AB16: =-COS(AB15) -> -0.7004111508 | AK16: x | AL16: 0 | AM16: =-COS(AM15) -> -0.7004111508
A17: y | B17: 0 | C17: =SIN(C15) -> -0.7137396023 | O17: y | P17: 0 | Q17: =SIN(Q15) -> -0.7137396023 | Z17: y | AA17: 0 | AB17: =SIN(AB15) -> -0.7137396023 | AK17: y | AL17: 0 | AM17: =SIN(AM15) -> -0.7137396023
D19: Value | E19: Label | R19: Value | S19: Label | AC19: Value | AD19: Label | AN19: Value | AO19: Label
C20: 70 | D20: 10 | E20: =B26+F3 -> 4 | Q20: 70 | R20: 10 | S20: =P26+T3 -> 4 | AB20: 70 | AC20: 10 | AD20: =AA26+AE3 -> 4 | AM20: 70 | AN20: 10 | AO20: =AL26+AP3 -> 4
C21: =B7*$C$20/$B$25 -> 3.5 | D21: 10 | E21: =E20+$B$26 -> 8 | Q21: =P7*$C$20/$B$25 -> 3.5 | R21: 10 | S21: =S20+$B$26 -> 8 | AB21: =AA7*$AB$20/$AA$25 -> 3.5 | AC21: 10 | AD21: =AD20+$AA$26 -> 8 | AM21: =AL7*$AM$20/$AL$25 -> 3.5 | AN21: 10 | AO21: =AO20+$AL$26 -> 8
C22: =B8*$C$20/$B$25 -> 26.25 | D22: 10 | E22: 12 | Q22: =P8*$C$20/$B$25 -> 26.25 | R22: 10 | S22: 12 | AB22: =AA8*$AB$20/$AA$25 -> 26.25 | AC22: 10 | AD22: 12 | AM22: =AL8*$AM$20/$AL$25 -> 26.25 | AN22: 10 | AO22: =AO21+$AL$26 -> 12
C23: =B9*$C$20/$B$25 -> 40.25 | D23: 10 | E23: 16 | Q23: =P9*$C$20/$B$25 -> 40.25 | R23: 10 | S23: 16 | AB23: =AA9*$AB$20/$AA$25 -> 40.25 | AC23: 10 | AD23: 16 | AM23: 40.25 | AN23: 10 | AO23: 16
A24: White | C24: 23 | D24: 10 | E24: 20 | O24: White | Q24: 23 | R24: 10 | S24: 20 | Z24: White | AB24: 23 | AC24: 10 | AD24: 20 | AK24: White | AM24: 23 | AN24: 10 | AO24: 20
A25: Total | B25: =SUM(B7:B24) -> 40 | C25: =SUM(C21:C24) -> 93 | D25: 10 | E25: 24 | O25: Total | P25: =SUM(P7:P24) -> 40 | Q25: =SUM(Q21:Q24) -> 93 | R25: 10 | S25: 24 | Z25: Total | AA25: =SUM(AA7:AA24) -> 40 | AB25: =SUM(AB21:AB24) -> 93 | AC25: 10 | AD25: 24 | AK25: Total | AL25: =SUM(AL7:AL24) -> 40 | AM25: =SUM(AM21:AM24) -> 93 | AN25: 10 | AO25: 24
A26: Increment | B26: =B25/10 -> 4 | D26: 10 | E26: 28 | O26: Increment | P26: =P25/10 -> 4 | R26: 10 | S26: 28 | Z26: Increment | AA26: =AA25/10 -> 4 | AC26: 10 | AD26: 28 | AK26: Increment | AL26: =AL25/10 -> 4 | AN26: 10 | AO26: 28
A27: Conversion | B27: =100/B25 -> 2.5 | D27: 10 | E27: 32 | O27: Conversion | P27: =100/P25 -> 2.5 | R27: 10 | S27: 32 | Z27: Conversion | AA27: =100/AA25 -> 2.5 | AC27: 10 | AD27: 32 | AK27: Conversion | AL27: =100/AL25 -> 2.5 | AN27: 10 | AO27: 32
D28: 10 | E28: 36 | R28: 10 | S28: 36 | AC28: 10 | AD28: 36 | AN28: 10 | AO28: 36
D29: 10 | E29: 40 | R29: 10 | S29: 40 | AC29: 10 | AD29: 40 | AN29: 10 | AO29: 40
D30: 33 | E30: =F3 -> 0 | R30: 33 | S30: =T3 -> 0 | AC30: 33 | AD30: =AE3 -> 0 | AN30: 33 | AO30: =AP3 -> 0

Sheet pAccel1 (hidden)
A1: Gauge Configuration | Q1: Gauge Configuration | X1: Gauge Configuration | AE1: Gauge Configuration | AL1: Gauge Configuration | AS1: Gauge Configuration | AZ1: Gauge Configuration | BG1: Gauge Configuration
F2: Decal | V2: Decal | AC2: Decal | AJ2: Decal | AQ2: Decal | AX2: Decal | BE2: Decal | BL2: Decal
A3: Title: | B3: CPDs | F3: 100 | Q3: Title: | R3: Facturación | V3: 100 | X3: Title: | Y3: CPDs | AC3: 100 | AE3: Title: | AF3: Facturación | AJ3: 100 | AL3: Title: | AM3: Facturación | AQ3: 100 | AS3: Title: | AT3: Facturación | AX3: 100 | AZ3: Title: | BA3: Facturación | BE3: 100 | BG3: Title: | BH3: Facturación | BL3: 100
A4: Real Value: | B4: =Dashboard!#REF! ->  | C4: =Dashboard!#REF! ->  | Q4: Real Value: | R4: =Dashboard!#REF! ->  | X4: Real Value: | Y4: =Dashboard!#REF! ->  | AE4: Real Value: | AF4: =Dashboard!#REF! ->  | AL4: Real Value: | AM4: =Dashboard!H8 -> 0.1598238333 | AS4: Real Value: | AT4: =Dashboard!$K$8 -> n.a. | AZ4: Real Value: | BA4: =Dashboard!JX31 -> 0.0945950019 | BG4: Real Value: | BH4: =Dashboard!JX30 -> 
A6: Color bands
A7: Red: | B7: -50
A8: Yellow: | B8: 0
A9: Green: | B9: 50
A11: Advanced Parameters | Q11: Advanced Parameters | X11: Advanced Parameters | AE11: Advanced Parameters | AL11: Advanced Parameters | AS11: Advanced Parameters | AZ11: Advanced Parameters | BG11: Advanced Parameters
B12: Value to 100% | C12: =IF(ISERROR((B4-F3/100)*B27),0,(B4-F3/100)*B27) -> 0 | E12: =IF(ISERROR((C4-F3/100)*B27),0,(C4-F3/100)*B27) -> 0 | R12: Value to 100% | S12: =IF(ISERROR((R4-V3/100)*R27),0,(R4-V3/100)*R27) -> 0 | Y12: Value to 100% | Z12: =IF(ISERROR((Y4-AC3/100)*Y27),0,(Y4-AC3/100)*Y27) -> 0 | AF12: Value to 100% | AG12: =IF(ISERROR((AF4-AJ3/100)*AF27),0,(AF4-AJ3/100)*AF27) -> 0 | AM12: Value to 100% | AN12: =IF(ISERROR((AM4-AQ3/100)*AM27),0,(AM4-AQ3/100)*AM27) -> -1.680352333 | AT12: Value to 100% | AU12: =IF(ISERROR((AT4-AX3/100)*AT27),0,(AT4-AX3/100)*AT27) -> 0 | BA12: Value to 100% | BB12: =IF(ISERROR((BA4-BE3/100)*BA27),0,(BA4-BE3/100)*BA27) -> -1.810809996 | BH12: Value to 100% | BI12: =IF(ISERROR((BH4-BL3/100)*BH27),0,(BH4-BL3/100)*BH27) -> 0
B13: Relative value | C13: =IF(B4<-100%,-100%,IF(B4>100%,100%,2*B4/1)) ->  | D13: ojo1, todo en porcentaje, por 2, y con 1 al final en lugar de 100. | E13: =IF(C4<-100%,-100%,IF(C4>100%,100%,2*C4/1)) ->  | I13: Todos los negritas tienen dato 50, en lugar de 100 para que la escala recorra menos. | R13: Relative value | S13: =IF(R4<-100%,-100%,IF(R4>100%,100%,2*R4/1)) ->  | Y13: Relative value | Z13: =IF(Y4<-100%,-100%,IF(Y4>100%,100%,2*Y4/1)) ->  | AF13: Relative value | AG13: =IF(AF4<-100%,-100%,IF(AF4>100%,100%,2*AF4/1)) ->  | AM13: Relative value | AN13: =IF(AM4<-100%,-100%,IF(AM4>100%,100%,2*AM4/1)) -> 0.3196476666 | AT13: Relative value | AU13: =IF(AT4<-100%,-100%,IF(AT4>100%,100%,2*AT4/1)) -> 1 | BA13: Relative value | BB13: =IF(BA4<-100%,-100%,IF(BA4>100%,100%,2*BA4/1)) -> 0.1891900038 | BH13: Relative value | BI13: =IF(BH4<-100%,-100%,IF(BH4>100%,100%,2*BH4/1)) -> 
A15: Angle | C15: =C13*PI()/2 ->  | E15: =E13*PI()/2 ->  | Q15: Angle | S15: =S13*PI()/2 ->  | X15: Angle | Z15: =Z13*PI()/2 ->  | AE15: Angle | AG15: =AG13*PI()/2 ->  | AL15: Angle | AN15: =AN13*PI()/2 -> 0.5021013805 | AS15: Angle | AU15: =AU13*PI()/2 -> 1.570796327 | AZ15: Angle | BB15: =BB13*PI()/2 -> 0.297178963 | BG15: Angle | BI15: =BI13*PI()/2 -> 
A16: x | B16: 0 | C16: =SIN(C15) ->  | D16: =B16 -> 0 | E16: =SIN(E15) ->  | Q16: x | R16: 0 | S16: =SIN(S15) ->  | X16: x | Y16: 0 | Z16: =SIN(Z15) ->  | AE16: x | AF16: 0 | AG16: =SIN(AG15) ->  | AL16: x | AM16: 0 | AN16: =SIN(AN15) -> 0.4812686136 | AS16: x | AT16: 0 | AU16: =SIN(AU15) -> 1 | AZ16: x | BA16: 0 | BB16: =SIN(BB15) -> 0.2928239948 | BG16: x | BH16: 0 | BI16: =SIN(BI15) -> 
A17: y | B17: 0 | C17: =-COS(C15) ->  | D17: =B17 -> 0 | E17: =-COS(E15) ->  | Q17: y | R17: 0 | S17: =-COS(S15) ->  | X17: y | Y17: 0 | Z17: =-COS(Z15) ->  | AE17: y | AF17: 0 | AG17: =-COS(AG15) ->  | AL17: y | AM17: 0 | AN17: =-COS(AN15) -> -0.8765731695 | AS17: y | AT17: 0 | AU17: =-COS(AU15) -> -6.125742275e-17 | AZ17: y | BA17: 0 | BB17: =-COS(BB15) -> -0.95616636 | BG17: y | BH17: 0 | BI17: =-COS(BI15) -> 
D19: Value | E19: Label
C20: 50 | D20: 0 | E20: 50
C21: =E21 -> 40 | D21: =D31/D33 -> 5 | E21: =E20+$B$26 -> 40
C22: =E22 -> 30 | D22: =D21 -> 5 | E22: =E21+$B$26 -> 30
C23: 20 | D23: =D22 -> 5 | E23: 20
A24: White | C24: 10 | D24: 5 | E24: 10 | Q24: White | X24: White | AE24: White | AL24: White | AS24: White | AZ24: White | BG24: White
A25: Total | B25: 50 | C25: 0 | D25: 5 | E25: 0 | Q25: Total | R25: 50 | X25: Total | Y25: 50 | AE25: Total | AF25: 50 | AL25: Total | AM25: 50 | AS25: Total | AT25: 50 | AZ25: Total | BA25: 50 | BG25: Total | BH25: 50
A26: Increment | B26: -10 | C26: -10 | D26: 5 | E26: -10 | Q26: Increment | R26: -10 | X26: Increment | Y26: -10 | AE26: Increment | AF26: -10 | AL26: Increment | AM26: -10 | AS26: Increment | AT26: -10 | AZ26: Increment | BA26: -10 | BG26: Increment | BH26: -10
A27: Conversion | B27: =100/B25 -> 2 | C27: -20 | D27: 5 | E27: -20 | Q27: Conversion | R27: =100/R25 -> 2 | X27: Conversion | Y27: =100/Y25 -> 2 | AE27: Conversion | AF27: =100/AF25 -> 2 | AL27: Conversion | AM27: =100/AM25 -> 2 | AS27: Conversion | AT27: =100/AT25 -> 2 | AZ27: Conversion | BA27: =100/BA25 -> 2 | BG27: Conversion | BH27: =100/BH25 -> 2
C28: -30 | D28: 5 | E28: -30
C29: -40 | D29: 5 | E29: -40
C30: -50 | D30: 5 | E30: -50
D31: 50
D33: 10
D35: =SUM(D20:D30) -> 50

Sheet empresa_ccaa
M3: =Dashboard!Q3 -> 2017
M4: =Dashboard!Q4 -> NOVIEMBRE
K5: Empresa | L5: =L9 -> iEMPRESA
C9: Facturación, € | F9: ASEMPLEO | G9: ASEMPLEO | K9: Empresa = | L9: iEMPRESA
C10: Dato acumulado a | E10: =M4 -> NOVIEMBRE | F10: 2016 | G10: 2017 | J10: Facturación | K10: 2016 | L10: 2017
H11: Estructura (%) | J11: Datos acumulados | M11: Estructura (%) | N11: check
F12: =E138 -> 2798179299 | G12: =B138 -> 3245395041 | H12: =G12/G$12 -> 1 | I12: TOTAL | K12: =SUM(K13:K29) -> 0 | L12: =SUM(L13:L29) -> 0 | M12: =L12/L$12 ->  | N12: =L12/K12-1 -> 
F13: 267281770.2 | G13: 292565289.8 | H13: =G13/G$12 -> 0.09014782055 | I13: ANDALUCIA | M13: =L13/L$12 -> 
F14: 147329392.1 | G14: 190133495.9 | H14: =G14/G$12 -> 0.05858562472 | I14: ARAGON | M14: =L14/L$12 -> 
F15: 49068100.89 | G15: 65327796.76 | H15: 0.02012938207 | I15: ASTURIAS
F16: 13145119.56 | G16: 16773167.96 | H16: 0.005168297772 | I16: BALEARES
F17: 55264380.62 | G17: 67626188.72 | H17: 0.02083758306 | I17: CANARIAS
F18: 59612773.52 | G18: 77397307.49 | H18: 0.02384834712 | I18: CANTABRIA
F19: 124025735 | G19: 140550814.1 | H19: 0.04330776755 | I19: CASTILLA-LA MANCHA
F20: 200000490.3 | G20: 223515208.8 | H20: 0.06887149514 | I20: CASTILLA Y LEÓN
F21: 679132715.7 | G21: 796701398.3 | H21: 0.2454867245 | I21: CATALUÑA | M21: =L21/L$12 -> 
F22: 210142356.3 | G22: 243319149.4 | H22: 0.07497366156 | I22: COMUNIDAD VALENCIANA
F23: 16388739.1 | G23: 20544655 | H23: 0.006330401921 | I23: EXTREMADURA
F24: 150482001.2 | G24: 171562939.4 | H24: 0.05286349958 | I24: GALICIA
F25: 468983654.4 | G25: 511087961.7 | H25: 0.1574809708 | I25: MADRID
F26: 91853347.75 | G26: 119001084.8 | H26: 0.03666767321 | I26: MURCIA
F27: 89891012.52 | G27: 109566471.9 | H27: 0.03376059631 | I27: NAVARRA
F28: 149792164 | G28: 170907744.4 | H28: 0.05266161508 | I28: PAIS VASCO
F29: 25785545.95 | G29: 28814366.61 | H29: 0.008878539053 | I29: RIOJA (LA)
A31: Fuente: Cifras consolidadas del sector. ASEMPLEO ©.
A32: Nota de Confidencialidad: Este informe comparativo se genera con los datos propios de la Empresa.
A133: D03: | D133: D03: | G133: D03 : | H133: Variación Interanual (%)
A134: MES:OCTUBRE | B134: ACUMULADO A LA FECHA | D134: =A134 -> MES:OCTUBRE | E134: =B134 -> ACUMULADO A LA FECHA | G134: =D134 -> MES:OCTUBRE | H134: 2017/2016
B136: Facturación | E136: Facturación | H136: Facturación
I137: check
A138: TOTAL | B138: 3245395041 | D138: TOTAL | E138: 2798179299 | G138: TOTAL | H138: 0.1598238333 | I138: =B138/E138-1 -> 0.1598238333
A139: ANDALUCIA | B139: 292565289.8 | D139: ANDALUCIA | E139: 267281770.2 | G139: ANDALUCIA | H139: 0.0945950019 | I139: =B139/E139-1 -> 0.0945950019
A140: ARAGON | B140: 190133495.9 | D140: ARAGON | E140: 147329392.1 | G140: ARAGON | H140: 0.2905333638 | I140: 0.2905333638
A141: ASTURIAS | B141: 65327796.76 | D141: ASTURIAS | E141: 49068100.89 | G141: ASTURIAS | H141: 0.3313699852 | I141: 0.3313699852
A142: BALEARES | B142: 16773167.96 | D142: BALEARES | E142: 13145119.56 | G142: BALEARES | H142: 0.2759996499 | I142: 0.2759996499
A143: CANARIAS | B143: 67626188.72 | D143: CANARIAS | E143: 55264380.62 | G143: CANARIAS | H143: 0.2236849118 | I143: 0.2236849118
A144: CANTABRIA | B144: 77397307.49 | D144: CANTABRIA | E144: 59612773.52 | G144: CANTABRIA | H144: 0.2983342817 | I144: 0.2983342817
A145: CASTILLA-LA MANCHA | B145: 140550814.1 | D145: CASTILLA-LA MANCHA | E145: 124025735 | G145: CASTILLA-LA MANCHA | H145: 0.133239114 | I145: 0.133239114
A146: CASTILLA Y LEÓN | B146: 223515208.8 | D146: CASTILLA Y LEÓN | E146: 200000490.3 | G146: CASTILLA Y LEÓN | H146: 0.1175733044 | I146: 0.1175733044
A147: CATALUÑA | B147: 796701398.3 | D147: CATALUÑA | E147: 679132715.7 | G147: CATALUÑA | H147: 0.1731159167 | I147: 0.1731159167
A148: COMUNIDAD VALENCIANA | B148: 243319149.4 | D148: COMUNIDAD VALENCIANA | E148: 210142356.3 | G148: COMUNIDAD VALENCIANA | H148: 0.1578777056 | I148: 0.1578777056
A149: EXTREMADURA | B149: 20544655 | D149: EXTREMADURA | E149: 16388739.1 | G149: EXTREMADURA | H149: 0.2535836268 | I149: 0.2535836268
A150: GALICIA | B150: 171562939.4 | D150: GALICIA | E150: 150482001.2 | G150: GALICIA | H150: 0.1400894326 | I150: 0.1400894326
A151: MADRID | B151: 511087961.7 | D151: MADRID | E151: 468983654.4 | G151: MADRID | H151: 0.08977777131 | I151: 0.08977777131
A152: MURCIA | B152: 119001084.8 | D152: MURCIA | E152: 91853347.75 | G152: MURCIA | H152: 0.2955552272 | I152: 0.2955552272
A153: NAVARRA | B153: 109566471.9 | D153: NAVARRA | E153: 89891012.52 | G153: NAVARRA | H153: 0.2188812739 | I153: 0.2188812739
A154: PAIS VASCO | B154: 170907744.4 | D154: PAIS VASCO | E154: 149792164 | G154: PAIS VASCO | H154: 0.1409658544 | I154: 0.1409658544
A155: RIOJA (LA) | B155: 28814366.61 | D155: RIOJA (LA) | E155: 25785545.95 | G155: RIOJA (LA) | H155: 0.1174619561 | I155: 0.1174619561
A156: Ceuta y Melilla | B156: 0 | D156: Ceuta y Melilla | E156: 0 | G156: Ceuta y Melilla | H156: 0
